fUSD/lending_fUSD_20250103
["ID","MTS","AMOUNT","RATE_DAILY","PERIOD"]
[347573567,1735921845249,-500.0,0.00010137,2]
[347573569,1735921845259,-500.0,0.00010137,2]
[347573571,1735921845272,-500.0,0.00010137,2]
[347573574,1735921845283,-584.48853842,0.00010137,2]
[347573576,1735921845296,-500.0,0.00010137,2]
[347573578,1735921845310,-938.38,0.00010137,2]
[347573580,1735921845322,-683.76,0.00010137,2]
[347573583,1735921845334,-535.79,0.00010137,2]
[347573585,1735921845345,-376.74,0.00010137,2]
[347573587,1735921845355,-500.0,0.00010137,2]
[347573589,1735921845364,-500.0,0.00010137,2]
[347573591,1735921845375,-500.0,0.00010137,2]
[347573593,1735921845386,-500.0,0.00010137,2]
[347573596,1735921845397,-500.0,0.00010138,2]
[347573598,1735921845407,-500.0,0.00010138,2]
[347573600,1735921845418,-500.0,0.00010138,2]
[347573602,1735921845429,-500.0,0.00010138,2]
[347573604,1735921845440,-500.0,0.00010138,2]
[347573606,1735921845451,-853.95,0.00010138,2]
[347573608,1735921845462,-500.0,0.00010138,2]
[347573611,1735921845474,-572.00606023,0.00010138,2]
[347573613,1735921845485,-500.0,0.00010138,2]
[347573615,1735921845496,-300.05,0.00010138,2]
[347573617,1735921845506,-500.0,0.00010138,2]
[347573619,1735921845517,-364.74,0.00010138,2]
[347573622,1735921845529,-1012.88,0.00010138,2]
[347573624,1735921845541,-573.55,0.00010138,2]
[347573626,1735921845554,-500.0,0.00010138,2]
[347573628,1735921845564,-2015.34,0.00010138,2]
[347573630,1735921845576,-311.31,0.00010138,2]
[347573633,1735921845587,-500.0,0.00010138,2]
[347573635,1735921845599,-1719.7,0.00010138,2]
[347573637,1735921845611,-500.0,0.00010138,2]
[347573639,1735921845622,-500.0,0.00010138,2]
[347573641,1735921845633,-500.0,0.00010138,2]
[347573644,1735921845646,-417.71445942,0.00010138,2]
[347573646,1735921845659,-500.0,0.00010138,2]
[347573648,1735921845670,-500.0,0.00010138,2]
[347573650,1735921845682,-557.05,0.00010138,2]
[347573652,1735921845693,-306.89,0.00010138,2]
[347573655,1735921845704,-500.0,0.00010138,2]
[347573657,1735921845716,-500.0,0.00010138,2]
[347573659,1735921845727,-500.0,0.00010138,2]
[347573661,1735921845739,-234.77,0.00010138,2]
[347573663,1735921845750,-2849.79,0.00010138,2]
[347573666,1735921845766,-500.0,0.00010138,2]
[347573668,1735921845778,-500.0,0.00010138,2]
[347573670,1735921845789,-500.0,0.00010138,2]
[347573672,1735921845803,-425.48847645,0.00010138,2]
[347573674,1735921845814,-500.0,0.00010138,2]
[347573676,1735921845826,-500.0,0.00010138,2]
[347573679,1735921845839,-500.0,0.00010138,2]
[347573681,1735921845850,-500.0,0.00010138,2]
[347573683,1735921845860,-500.0,0.00010138,2]
[347573685,1735921845871,-1995.29,0.00010138,2]
[347573687,1735921845883,-500.0,0.00010138,2]
[347573689,1735921845895,-500.0,0.00010138,2]
[347573692,1735921845906,-670.73,0.00010138,2]
[347573694,1735921845918,-500.0,0.00010138,2]
[347573696,1735921845928,-500.0,0.00010138,2]
[347573698,1735921845939,-842.12,0.00010138,2]
[347573700,1735921845950,-884.35,0.00010138,2]
[347573703,1735921845961,-1909.87,0.00010139,2]
[347573705,1735921845972,-1909.87,0.00010139,2]
[347573708,1735921845982,-500.0,0.00010139,2]
[347573710,1735921845991,-500.0,0.00010139,2]
[347573712,1735921846001,-500.0,0.00010139,2]
[347573714,1735921846012,-500.0,0.00010139,2]
[347573716,1735921846022,-2021.04,0.00010139,2]
[347573718,1735921846033,-500.0,0.00010139,2]
[347573720,1735921846046,-500.0,0.00010139,2]
[347573723,1735921846059,-500.0,0.0001014,2]
[347573726,1735921846069,-512.5,0.0001014,2]
[347573730,1735921846079,-500.0,0.0001014,2]
[347573734,1735921846089,-500.0,0.0001014,2]
[347573737,1735921846099,-788.04,0.0001014,2]
[347573740,1735921846108,-1033.89,0.0001014,2]
[347573742,1735921846118,-500.0,0.0001014,2]
[347573744,1735921846128,-500.0,0.00010141,2]
[347573746,1735921846138,-961.38,0.00010141,2]
[347573748,1735921846149,-951.38,0.00010141,2]
[347573750,1735921846159,-1041.75,0.00010141,2]
[347573752,1735921846171,-500.0,0.00010141,2]
[347573755,1735921846182,-500.0,0.00010141,2]
[347573757,1735921846192,-500.0,0.00010141,2]
[347573759,1735921846202,-302.86244443,0.00010141,2]
[347573761,1735921846212,-743.52,0.00010141,2]
[347573763,1735921846222,-500.0,0.00010141,2]
[347573765,1735921846232,-636.0,0.00010245,2]
[347573767,1735921846241,-1102.0,0.00010245,2]
[347573769,1735921846251,-500.0,0.0001029,2]
[347573771,1735921846262,-500.0,0.0001029,2]
[347573773,1735921846273,-1127.61,0.0001029,2]
[347573775,1735921846283,-500.0,0.00010343,2]
[347573777,1735921846293,-500.0,0.00010343,2]
[347573780,1735921846304,-310.69,0.00010343,2]
[347573782,1735921846313,-207.02,0.00010343,2]
[347573784,1735921846323,-500.0,0.00010343,2]
[347573786,1735921846333,-500.0,0.00010343,2]
[347573788,1735921846344,-500.0,0.00010343,2]
[347573790,1735921846353,-500.0,0.00010343,2]
[347573792,1735921846364,-178.14,0.00010343,2]
[347573794,1735921846374,-500.0,0.00010343,2]
[347573796,1735921846386,-359.85,0.00010343,2]
[347573799,1735921846396,-200.03,0.00010343,2]
[347573801,1735921846406,-515.23,0.00010343,2]
[347573803,1735921846417,-393.42,0.00010343,2]
[347573805,1735921846426,-562.8,0.00010343,2]
[347573807,1735921846437,-500.0,0.00010343,2]
[347573809,1735921846447,-166.19,0.00010343,2]
[347573811,1735921846457,-500.0,0.00010343,2]
[347573813,1735921846467,-253.47,0.00010343,2]
[347573815,1735921846477,-277.78,0.00010343,2]
[347573817,1735921846488,-264.13,0.00010343,2]
[347573818,1735921846498,-450.86,0.00010343,2]
[347573819,1735921846509,-212.29,0.00010343,2]
[347573820,1735921846519,-162.23,0.00010343,2]
[347573821,1735921846529,-500.0,0.00010343,2]
[347573822,1735921846540,-500.0,0.00010343,2]
[347573823,1735921846553,-500.0,0.00010343,2]
[347573824,1735921846564,-500.0,0.00010343,2]
[347573825,1735921846575,-365.46,0.00010343,2]
[347573826,1735921846586,-443.14,0.00010343,2]
[347573827,1735921846597,-500.0,0.00010343,2]
[347573828,1735921846608,-171.59,0.00010343,2]
[347573829,1735921846618,-1107.45,0.00010343,2]
[347573830,1735921846629,-218.7,0.00010343,2]
[347573831,1735921846640,-153.1,0.00010343,2]
[347573832,1735921846651,-241.49,0.00010343,2]
[347573833,1735921846661,-1029.53,0.00010405,2]
[347573835,1735921846672,-500.0,0.00010411,2]
[347573837,1735921846682,-500.0,0.00010411,2]
[347573839,1735921846693,-500.0,0.00010411,2]
[347573841,1735921846703,-500.0,0.00010411,2]
[347573843,1735921846713,-500.0,0.00010411,2]
[347573845,1735921846725,-500.0,0.00010411,2]
[347573848,1735921846735,-500.0,0.00010411,2]
[347573849,1735921846745,-500.0,0.00010411,2]
[347573851,1735921846757,-500.0,0.00010411,2]
[347573852,1735921846767,-533.693064,0.00010411,2]
[347573853,1735921846780,-500.0,0.00010411,2]
[347573854,1735921846791,-959.27,0.00010411,2]
[347573855,1735921846805,-500.0,0.00010411,2]
[347573856,1735921846815,-1044.990237,0.00010411,2]
[347573857,1735921846826,-500.0,0.00010411,2]
[347573858,1735921846836,-485.41658978,0.00010411,2]
[347573859,1735921846848,-500.0,0.00010411,2]
[347573860,1735921846858,-500.0,0.00010411,2]
[347573861,1735921846868,-643.81,0.00010411,2]
[347573862,1735921846878,-1315.34,0.00010411,2]
[347573864,1735921846888,-500.0,0.00010411,2]
[347573866,1735921846899,-500.0,0.00010411,2]
[347573868,1735921846909,-508.09,0.00010411,2]
[347573870,1735921846919,-500.0,0.00010411,2]
[347573872,1735921846929,-541.58,0.00010411,2]
[347573874,1735921846940,-519.67513518,0.00010411,2]
[347573876,1735921846950,-1092.45,0.00010411,2]
[347573878,1735921846960,-500.0,0.00010411,2]
[347573880,1735921846971,-500.0,0.00010411,2]
[347573883,1735921846982,-500.0,0.00010411,2]
[347573885,1735921846992,-1027.33,0.00010411,2]
[347573887,1735921847003,-500.0,0.00010411,2]
[347573889,1735921847013,-500.0,0.00010411,2]
[347573891,1735921847023,-549.1,0.00010411,2]
[347573893,1735921847033,-738.17,0.00010411,2]
[347573895,1735921847043,-500.0,0.00010411,2]
[347573898,1735921847056,-500.0,0.00010411,2]
[347573900,1735921847066,-500.0,0.00010411,2]
[347573902,1735921847077,-435.42780603,0.00010411,2]
[347573904,1735921847088,-591.86,0.00010411,2]
[347573906,1735921847098,-500.0,0.00010411,2]
[347573908,1735921847108,-1048.01,0.00010411,2]
[347573910,1735921847118,-589.35,0.00010411,2]
[347573912,1735921847128,-500.0,0.00010411,2]
[347573914,1735921847139,-256.08,0.00010411,2]
[347573916,1735921847149,-500.0,0.00010411,2]
[347573919,1735921847160,-500.0,0.00010411,2]
[347573921,1735921847170,-500.0,0.00010411,2]
[347573923,1735921847180,-588.33,0.00010411,2]
[347573925,1735921847190,-500.0,0.00010411,2]
[347573927,1735921847201,-895.81,0.00010411,2]
[347573929,1735921847211,-1466.37,0.00010411,2]
[347573931,1735921847221,-867.5,0.00010411,2]
[347573933,1735921847231,-553.12,0.00010411,2]
[347573935,1735921847241,-500.0,0.00010411,2]
[347573937,1735921847251,-410.47185442,0.00010411,2]
[347573940,1735921847261,-500.0,0.00010411,2]
[347573942,1735921847271,-500.0,0.00010411,2]
[347573944,1735921847281,-500.0,0.00010411,2]
[347573946,1735921847291,-500.0,0.00010411,2]
[347573948,1735921847303,-938.38,0.00010411,2]
[347573950,1735921847314,-683.76,0.00010411,2]
[347573952,1735921847324,-500.0,0.00010411,2]
[347573954,1735921847334,-500.0,0.00010411,2]
[347573956,1735921847344,-500.0,0.00010411,2]
[347573959,1735921847355,-530.27293503,0.00010411,2]
[347573961,1735921847365,-500.0,0.00010411,2]
[347573963,1735921847375,-351.7720441,0.00010411,2]
[347573965,1735921847386,-500.0,0.00010411,2]
[347573967,1735921847396,-500.0,0.00010411,2]
[347573969,1735921847406,-500.0,0.00010411,2]
[347573971,1735921847416,-500.0,0.00010411,2]
[347573973,1735921847426,-500.0,0.00010412,2]
[347573975,1735921847436,-500.0,0.00010412,2]
[347573977,1735921847447,-500.0,0.00010412,2]
[347573979,1735921847457,-500.0,0.00010412,2]
[347573981,1735921847467,-500.0,0.00010412,2]
[347573984,1735921847477,-853.95,0.00010412,2]
[347573986,1735921847487,-500.0,0.00010412,2]
[347573988,1735921847497,-500.0,0.00010412,2]
[347573990,1735921847507,-500.0,0.00010412,2]
[347573992,1735921847517,-1012.88,0.00010412,2]
[347573994,1735921847526,-573.55,0.00010412,2]
[347573996,1735921847536,-500.0,0.00010412,2]
[347573998,1735921847547,-2015.34,0.00010412,2]
[347574000,1735921847558,-500.0,0.00010412,2]
[347574002,1735921847568,-1719.7,0.00010412,2]
[347574004,1735921847578,-500.0,0.00010412,2]
[347574006,1735921847588,-500.0,0.00010412,2]
[347574008,1735921847598,-500.0,0.00010412,2]
[347574010,1735921847608,-500.0,0.00010412,2]
[347574012,1735921847619,-279.25516584,0.00010412,2]
[347574014,1735921847629,-557.05,0.00010412,2]
[347574017,1735921847640,-500.0,0.00010412,2]
[347574019,1735921847649,-221.92,0.00010412,2]
[347574021,1735921847659,-500.0,0.00010412,2]
[347574023,1735921847670,-500.0,0.00010412,2]
[347574025,1735921847681,-500.0,0.00010412,2]
[347574027,1735921847691,-500.0,0.00010412,2]
[347574029,1735921847701,-500.0,0.00010412,2]
[347574031,1735921847712,-500.0,0.00010412,2]
[347574033,1735921847722,-500.0,0.00010412,2]
[347574035,1735921847733,-637.45899342,0.00010412,2]
[347574038,1735921847743,-500.0,0.00010412,2]
[347574040,1735921847755,-1995.29,0.00010412,2]
[347574042,1735921847767,-500.0,0.00010412,2]
[347574044,1735921847777,-500.0,0.00010412,2]
[347574046,1735921847787,-670.73,0.00010412,2]
[347574048,1735921847799,-382.09902758,0.00010412,2]
[347574050,1735921847810,-500.0,0.00010412,2]
[347574052,1735921847820,-842.12,0.00010412,2]
[347574054,1735921847831,-884.35,0.00010412,2]
[347574056,1735921847842,-1909.87,0.00010413,2]
[347574058,1735921847854,-1909.87,0.00010413,2]
[347574060,1735921847865,-500.0,0.00010413,2]
[347574062,1735921847876,-500.0,0.00010413,2]
[347574064,1735921847886,-500.0,0.00010413,2]
[347574066,1735921847897,-500.0,0.00010413,2]
[347574069,1735921847907,-2021.04,0.00010413,2]
[347574071,1735921847918,-500.0,0.00010413,2]
[347574073,1735921847928,-236.6,0.00010413,2]
[347574075,1735921847938,-363.21392282,0.00010413,2]
[347574078,1735921847955,-145.71607718,0.00010413,2]
[347574079,1735921847965,-120.17992282,0.00010414,2]
[347574080,1735921847977,-379.82007718,0.00010414,2]
[347574082,1735921847987,-512.5,0.00010414,2]
[347574084,1735921847998,-500.0,0.00010414,2]
[347574086,1735921848008,-500.0,0.00010414,2]
[347574088,1735921848018,-788.04,0.00010414,2]
[347574090,1735921848027,-1033.89,0.00010414,2]
[347574092,1735921848037,-500.0,0.00010414,2]
[347574094,1735921848049,-500.0,0.00010415,2]
[347574096,1735921848059,-961.38,0.00010415,2]
[347574098,1735921848070,-951.38,0.00010415,2]
[347574100,1735921848079,-1041.75,0.00010415,2]
[347574102,1735921848090,-500.0,0.00010415,2]
[347574104,1735921848100,-500.0,0.00010415,2]
[347574106,1735921848110,-500.0,0.00010415,2]
[347574108,1735921848119,-212.35943682,0.00010415,2]
[347574110,1735921848131,-531.16056318,0.00010415,2]
[347574112,1735921848140,-500.0,0.00010415,2]
[347574114,1735921848150,-4440.67674772,0.000105,5]
[347574117,1735921848162,-1947.30560078,0.000105,5]
[347574119,1735921848174,-73845.59745727,0.000105,5]
[347574121,1735921848186,-563.59457719,0.000105,5]
[347574123,1735921848197,-12985.84610772,0.000105,5]
[347574125,1735921848209,-5541.05540236,0.000105,5]
[347574128,1735921848222,-6016.53409835,0.000105,5]
[347574131,1735921848641,-1047.84493567,0.000105,5]
[347574132,1735921848654,-2655.7217282,0.000105,5]
[347574133,1735921848666,-767.63420004,0.000105,5]
[347574134,1735921848678,-2930.05039338,0.000105,5]
[347574135,1735921848690,-1529.75742906,0.000105,5]
[347574136,1735921848702,-19477.93655241,0.000105,5]
[347574137,1735921848712,-500.0,0.00010564,2]
[347574138,1735921848721,-500.0,0.00010564,2]
[347574139,1735921848731,-1127.61,0.00010564,2]
[347574140,1735921848741,-185.82489742,0.00010567,2]
[347574141,1735921848751,-277.01,0.00010617,2]
[347574142,1735921848761,-500.0,0.00010617,2]
[347574143,1735921848773,-370.42,0.00010617,2]
[347574144,1735921848782,-500.0,0.00010617,2]
[347574145,1735921848792,-298.45,0.00010617,2]
[347574146,1735921848803,-500.0,0.00010617,2]
[347574147,1735921848814,-212.43293217,0.00010617,2]
[347574148,1735921848825,-287.56706783,0.00010617,2]
[347574149,1735921848835,-500.0,0.00010617,2]
[347574150,1735921848845,-123.71298202,0.00010617,2]
[347574151,1735921848857,-376.28701798,0.00010617,2]
[347574152,1735921848866,-500.0,0.00010617,2]
[347574153,1735921848876,-445.0,0.00010617,2]
[347574154,1735921848885,-1107.45,0.00010617,2]
[347574156,1735921848895,-3234.26848056,0.00010632,2]
[347574158,1735921848906,-6765.73151944,0.00010632,2]
[347574159,1735921848915,-500.0,0.00010685,2]
[347574160,1735921848925,-500.0,0.00010685,2]
[347574161,1735921848934,-173.29,0.00010685,2]
[347574162,1735921848943,-500.0,0.00010685,2]
[347574163,1735921848952,-153.57954591,0.00010685,2]
[347574164,1735921848961,-418.06891881,0.00010685,2]
[347574165,1735921848970,-500.0,0.00010685,2]
[347574166,1735921848980,-500.0,0.00010685,2]
[347574167,1735921848990,-500.0,0.00010685,2]
[347574168,1735921848999,-533.693064,0.00010685,2]
[347574169,1735921849008,-500.0,0.00010685,2]
[347574170,1735921849018,-959.27,0.00010685,2]
[347574171,1735921849028,-500.0,0.00010685,2]
[347574172,1735921849037,-198.27678643,0.00010685,2]
[347574173,1735921849049,-800.89909356,0.00010685,2]
[347574174,1735921849068,-45.81435701,0.00010685,2]
[347574175,1735921849078,-500.0,0.00010685,2]
[347574176,1735921849088,-500.0,0.00010685,2]
[347574178,1735921849097,-500.0,0.00010685,2]
[347574180,1735921849106,-643.81,0.00010685,2]
[347574182,1735921849116,-1315.34,0.00010685,2]
[347574184,1735921849125,-402.828623,0.00010685,2]
[347574186,1735921849137,-97.171377,0.00010685,2]
[347574188,1735921849146,-500.0,0.00010685,2]
[347574190,1735921849156,-508.09,0.00010685,2]
[347574192,1735921849165,-407.438623,0.00010685,2]
[347574194,1735921849177,-92.561377,0.00010685,2]
[347574196,1735921849186,-188.91871261,0.00010685,2]
[347574198,1735921849197,-352.66128739,0.00010685,2]
[347574200,1735921849207,-640.12871261,0.00010685,2]
[347574202,1735921849218,-452.32128739,0.00010685,2]
[347574204,1735921849228,-396.38196386,0.00010685,2]
[347574206,1735921849238,-500.0,0.00010685,2]
[347574208,1735921849248,-500.0,0.00010685,2]
[347574210,1735921849257,-1027.33,0.00010685,2]
[347574212,1735921849266,-500.0,0.00010685,2]
[347574214,1735921849275,-500.0,0.00010685,2]
[347574216,1735921849286,-140.24685603,0.00010685,2]
[347574218,1735921849297,-408.85314397,0.00010685,2]
[347574220,1735921849310,-738.17,0.00010685,2]
[347574222,1735921849319,-500.0,0.00010685,2]
[347574224,1735921849329,-500.0,0.00010685,2]
[347574226,1735921849339,-500.0,0.00010685,2]
[347574228,1735921849349,-591.86,0.00010685,2]
[347574230,1735921849359,-383.50719007,0.00010685,2]
[347574233,1735921849381,-116.49280993,0.00010685,2]
[347574235,1735921849391,-1048.01,0.00010685,2]
[347574237,1735921849401,-500.0,0.00010685,2]
[347574239,1735921849410,-500.0,0.00010685,2]
[347574241,1735921849420,-500.0,0.00010685,2]
[347574243,1735921849430,-500.0,0.00010685,2]
[347574245,1735921849440,-588.33,0.00010685,2]
[347574247,1735921849450,-500.0,0.00010685,2]
[347574249,1735921849460,-596.06719007,0.00010685,2]
[347574263,1735921849765,-299.74280993,0.00010685,2]
[347574265,1735921849775,-335.01453013,0.00010685,2]
[347574267,1735921849787,-1131.35546987,0.00010685,2]
[347574269,1735921849797,-516.99453013,0.00010685,2]
[347574272,1735921849812,-350.50546987,0.00010685,2]
[347574274,1735921849821,-553.12,0.00010685,2]
[347574276,1735921849833,-500.0,0.00010685,2]
[347574277,1735921849842,-500.0,0.00010685,2]
[347574279,1735921849851,-228.47797043,0.00010685,2]
[347574281,1735921849861,-500.0,0.00010685,2]
[347574283,1735921849870,-383.68840042,0.00010685,2]
[347574285,1735921849879,-888.84456188,0.00010685,2]
[347574288,1735921849897,-49.53543812,0.00010685,2]
[347574290,1735921849906,-578.4973194,0.00010685,2]
[347574293,1735921849918,-105.2626806,0.00010685,2]
[347574295,1735921849927,-500.0,0.00010685,2]
[347574297,1735921849936,-41.88076494,0.00010685,2]
[347574299,1735921849953,-319.06003354,0.00010685,2]
[347574302,1735921849969,-139.05920152,0.00010685,2]
[347574304,1735921849978,-500.0,0.00010685,2]
[347574306,1735921849988,-500.0,0.00010685,2]
[347574308,1735921849997,-231.23,0.00010686,2]
[347574310,1735921850005,-500.0,0.00010686,2]
[347574312,1735921850014,-500.0,0.00010686,2]
[347574314,1735921850023,-564.22167306,0.00010686,2]
[347574316,1735921850032,-500.0,0.00010686,2]
[347574318,1735921850043,-853.95,0.00010686,2]
[347574319,1735921850056,-500.0,0.00010686,2]
[347574322,1735921850065,-500.0,0.00010686,2]
[347574323,1735921850075,-500.0,0.00010686,2]
[347574325,1735921850085,-1012.88,0.00010686,2]
[347574327,1735921850094,-573.55,0.00010686,2]
[347574329,1735921850103,-500.0,0.00010686,2]
[347574330,1735921850112,-1973.5039013,0.00010686,2]
[347574331,1735921850123,-41.8360987,0.00010686,2]
[347574332,1735921850132,-500.0,0.00010686,2]
[347574333,1735921850141,-104.19996084,0.00010686,2]
[347574334,1735921850154,-395.80003916,0.00010686,2]
[347574335,1735921850163,-1719.7,0.00010686,2]
[347574336,1735921850172,-500.0,0.00010686,2]
[347574337,1735921850182,-500.0,0.00010686,2]
[347574338,1735921850193,-500.0,0.00010686,2]
[347574339,1735921850202,-557.05,0.00010686,2]
[347574340,1735921850211,-500.0,0.00010686,2]
[347574341,1735921850221,-500.0,0.00010686,2]
[347574342,1735921850230,-500.0,0.00010686,2]
[347574343,1735921850240,-500.0,0.00010686,2]
[347574344,1735921850249,-500.0,0.00010686,2]
[347574345,1735921850258,-492.12678504,0.00010686,2]
[347574346,1735921850268,-500.0,0.00010686,2]
[347574347,1735921850278,-500.0,0.00010686,2]
[347574349,1735921850287,-500.0,0.00010686,2]
[347574351,1735921850297,-1995.29,0.00010686,2]
[347574353,1735921850307,-500.0,0.00010686,2]
[347574355,1735921850316,-425.5330358,0.00010686,2]
[347574357,1735921850328,-74.4669642,0.00010686,2]
[347574359,1735921850337,-632.9228374,0.00010686,2]
[347574363,1735921850362,-500.0,9.589e-05,2]
[347574365,1735921850371,-37.8071626,0.00010686,2]
[347574367,1735921850381,-500.0,0.00010686,2]
[347574368,1735921850390,-842.12,0.00010686,2]
[347574370,1735921850399,-884.35,0.00010686,2]
[347574372,1735921850409,-1909.87,0.00010687,2]
[347574374,1735921850418,-995.78627196,0.00010687,2]
[347574376,1735921850430,-914.08372804,0.00010687,2]
[347574378,1735921850439,-500.0,0.00010687,2]
[347574380,1735921850448,-500.0,0.00010687,2]
[347574382,1735921850457,-500.0,0.00010687,2]
[347574384,1735921850466,-2021.04,0.00010687,2]
[347574385,1735921850475,-500.0,0.00010687,2]
[347574387,1735921850484,-500.0,0.00010688,2]
[347574389,1735921850494,-512.5,0.00010688,2]
[347574390,1735921850503,-500.0,0.00010688,2]
[347574391,1735921850512,-500.0,0.00010688,2]
[347574392,1735921850521,-788.04,0.00010688,2]
[347574393,1735921850530,-1033.89,0.00010688,2]
[347574394,1735921850540,-500.0,0.00010688,2]
[347574395,1735921850550,-961.38,0.00010689,2]
[347574396,1735921850560,-951.38,0.00010689,2]
[347574397,1735921850569,-1041.75,0.00010689,2]
[347574398,1735921850578,-500.0,0.00010689,2]
[347574399,1735921850588,-500.0,0.00010689,2]
[347574401,1735921850597,-500.0,0.00010689,2]
[347574402,1735921850606,-743.52,0.00010689,2]
[347574403,1735921850615,-500.0,0.00010689,2]
[347574404,1735921850625,-5723.48056188,0.00010725,2]
[347574405,1735921850633,-1000.0,0.00010827,2]
[347574406,1735921850643,-500.0,0.00010838,2]
[347574407,1735921850652,-1127.61,0.00010838,2]
[347574408,1735921850662,-449.77300797,0.00010891,2]
[347574409,1735921850671,-500.0,0.00010891,2]
[347574410,1735921850681,-500.0,0.00010891,2]
[347574411,1735921850690,-500.0,0.00010891,2]
[347574412,1735921850700,-491.0,0.00010891,2]
[347574413,1735921850709,-167.6714188,0.00010891,2]
[347574414,1735921850719,-500.0,0.00010891,2]
[347574415,1735921850728,-1107.45,0.00010891,2]
[347574416,1735921850737,-700.0,0.000109,3]
[347574417,1735921850747,-5830.54752864,0.000109,2]
[347574418,1735921850758,-5830.54752845,0.000109,2]
[347574419,1735921850768,-5830.54752845,0.000109,2]
[347574420,1735921850782,-5830.54752845,0.000109,2]
[347574421,1735921850791,-5830.54752845,0.000109,2]
[347574422,1735921850802,-5830.54752845,0.000109,2]
[347574423,1735921850812,-5830.54752845,0.000109,2]
[347574424,1735921850821,-5830.54752845,0.000109,2]
[347574425,1735921850831,-5830.54752845,0.000109,2]
[347574426,1735921850841,-5830.54752845,0.000109,2]
[347574427,1735921850851,-150.0,0.00010958,2]
[347574428,1735921850861,-150.0,0.00010959,2]
[347574429,1735921850870,-500.0,0.00010959,2]
[347574430,1735921850881,-500.0,0.00010959,2]
[347574431,1735921850891,-500.0,0.00010959,2]
[347574432,1735921850900,-500.0,0.00010959,2]
[347574433,1735921850910,-200.59096632,0.00010959,2]
[347574434,1735921850921,-500.0,0.00010959,2]
[347574435,1735921850930,-533.693064,0.00010959,2]
[347574436,1735921850939,-500.0,0.00010959,2]
[347574437,1735921850949,-959.27,0.00010959,2]
[347574438,1735921850960,-500.0,0.00010959,2]
[347574439,1735921850970,-1044.990237,0.00010959,2]
[347574440,1735921850979,-500.0,0.00010959,2]
[347574441,1735921850988,-500.0,0.00010959,2]
[347574442,1735921850997,-289.03732303,0.00010959,2]
[347574443,1735921851006,-643.81,0.00010959,2]
[347574444,1735921851016,-1315.34,0.00010959,2]
[347574445,1735921851025,-500.0,0.00010959,2]
[347574446,1735921851034,-500.0,0.00010959,2]
[347574447,1735921851044,-508.09,0.00010959,2]
[347574448,1735921851054,-500.0,0.00010959,2]
[347574449,1735921851063,-541.58,0.00010959,2]
[347574450,1735921851073,-1092.45,0.00010959,2]
[347574451,1735921851082,-500.0,0.00010959,2]
[347574452,1735921851092,-500.0,0.00010959,2]
[347574453,1735921851101,-1027.33,0.00010959,2]
[347574454,1735921851110,-500.0,0.00010959,2]
[347574455,1735921851119,-500.0,0.00010959,2]
[347574456,1735921851128,-549.1,0.00010959,2]
[347574457,1735921851138,-738.17,0.00010959,2]
[347574458,1735921851147,-500.0,0.00010959,2]
[347574459,1735921851156,-500.0,0.00010959,2]
[347574460,1735921851165,-500.0,0.00010959,2]